fUST/lending_fUST_20250221
["ID","MTS","AMOUNT","RATE_DAILY","PERIOD"]
[353867933,1740102646649,-8694.18,0.00014273,2]
[353867934,1740102646659,-4090.8,0.00014273,2]
[353867935,1740102646670,-682.32,0.00014273,2]
[353867936,1740102646680,-1964.88,0.00014273,2]
[353867937,1740102646690,-625.43,0.00014273,2]
[353867938,1740102646700,-7438.69753278,0.00014289,2]
[353867939,1740102646709,-300.0,0.000143,5]
[353867940,1740102646718,-444.235,0.00014327,2]
[353867941,1740102646728,-500.0,0.00014356,2]
[353867942,1740102646738,-500.0,0.00014356,2]
[353867943,1740102646748,-500.0,0.00014356,2]
[353867944,1740102646758,-528.42,0.00014356,2]
[353867945,1740102646768,-500.0,0.00014356,2]
[353867946,1740102646778,-500.0,0.00014356,2]
[353867947,1740102646788,-500.0,0.00014356,2]
[353867948,1740102646797,-593.02,0.00014356,2]
[353867949,1740102646807,-500.0,0.00014356,2]
[353867950,1740102646816,-669.5,0.00014356,2]
[353867951,1740102646826,-219.05290424,0.00014356,2]
[353867952,1740102646835,-500.0,0.00014356,2]
[353867953,1740102646845,-500.0,0.00014356,2]
[353867954,1740102646855,-500.0,0.00014356,2]
[353867955,1740102646866,-579.28,0.00014356,2]
[353867956,1740102646876,-500.0,0.00014356,2]
[353867957,1740102646885,-500.0,0.00014356,2]
[353867958,1740102646895,-500.0,0.00014356,2]
[353867959,1740102646906,-500.0,0.00014356,2]
[353867960,1740102646915,-419.67188834,0.00014356,2]
[353867961,1740102646925,-500.0,0.00014356,2]
[353867962,1740102646934,-500.0,0.00014356,2]
[353867963,1740102646944,-500.0,0.00014356,2]
[353867964,1740102646954,-19027.53,0.00014356,2]
[353867965,1740102646964,-770.37,0.00014356,2]
[353867966,1740102646974,-500.0,0.00014356,2]
[353867967,1740102646984,-627.86,0.00014356,2]
[353867968,1740102646993,-1278.28,0.00014356,2]
[353867969,1740102647002,-500.0,0.00014356,2]
[353867970,1740102647012,-606.91,0.00014356,2]
[353867971,1740102647021,-644.98,0.00014356,2]
[353867972,1740102647031,-1136.87,0.00014356,2]
[353867973,1740102647040,-738.12,0.00014356,2]
[353867974,1740102647050,-500.0,0.00014356,2]
[353867975,1740102647060,-1525.06,0.00014356,2]
[353867976,1740102647070,-3009.11,0.00014356,2]
[353867977,1740102647079,-500.0,0.00014356,2]
[353867978,1740102647088,-984.37,0.00014356,2]
[353867979,1740102647098,-1851.91,0.00014356,2]
[353867980,1740102647108,-1029.11,0.00014356,2]
[353867981,1740102647118,-1289.91,0.00014356,2]
[353867982,1740102647127,-500.0,0.00014356,2]
[353867983,1740102647137,-649.72,0.00014356,2]
[353867984,1740102647147,-549.03,0.00014356,2]
[353867985,1740102647157,-500.0,0.00014356,2]
[353867986,1740102647167,-1959.61,0.00014356,2]
[353867987,1740102647177,-1056.1,0.00014356,2]
[353867988,1740102647187,-500.0,0.00014356,2]
[353867989,1740102647197,-10010.78,0.00014356,2]
[353867990,1740102647208,-500.0,0.00014356,2]
[353867991,1740102647217,-1378.28,0.00014356,2]
[353867992,1740102647227,-500.0,0.00014356,2]
[353867993,1740102647238,-1480.71,0.00014356,2]
[353867994,1740102647247,-500.0,0.00014356,2]
[353867995,1740102647258,-500.0,0.00014356,2]
[353867996,1740102647267,-1065.74,0.00014356,2]
[353867997,1740102647279,-1000.37,0.00014356,2]
[353867998,1740102647289,-500.0,0.00014356,2]
[353867999,1740102647299,-500.0,0.00014356,2]
[353868000,1740102647309,-3174.19,0.00014356,2]
[353868001,1740102647319,-500.0,0.00014356,2]
[353868002,1740102647329,-1198.02,0.00014356,2]
[353868003,1740102647339,-8694.18,0.00014356,2]
[353868004,1740102647348,-4090.8,0.00014356,2]
[353868005,1740102647358,-682.32,0.00014356,2]
[353868006,1740102647367,-1964.88,0.00014356,2]
[353868007,1740102647378,-625.43,0.00014356,2]
[353868008,1740102647388,-154.7234452,0.00014356,2]
[353868009,1740102647399,-151.0,0.000144,2]
[353868010,1740102647408,-500.0,0.00014438,2]
[353868011,1740102647423,-500.0,0.00014438,2]
[353868012,1740102647433,-500.0,0.00014438,2]
[353868013,1740102647442,-528.42,0.00014438,2]
[353868014,1740102647451,-500.0,0.00014438,2]
[353868015,1740102647464,-500.0,0.00014438,2]
[353868016,1740102647474,-500.0,0.00014438,2]
[353868017,1740102647483,-593.02,0.00014438,2]
[353868018,1740102647493,-500.0,0.00014438,2]
[353868019,1740102647503,-669.5,0.00014438,2]
[353868020,1740102647512,-500.0,0.00014438,2]
[353868021,1740102647522,-500.0,0.00014438,2]
[353868022,1740102647531,-500.0,0.00014438,2]
[353868023,1740102647543,-579.28,0.00014438,2]
[353868024,1740102647553,-500.0,0.00014438,2]
[353868025,1740102647563,-500.0,0.00014438,2]
[353868026,1740102647572,-500.0,0.00014438,2]
[353868027,1740102647583,-500.0,0.00014438,2]
[353868028,1740102647591,-500.0,0.00014438,2]
[353868029,1740102647601,-500.0,0.00014438,2]
[353868030,1740102647610,-500.0,0.00014438,2]
[353868031,1740102647621,-19027.53,0.00014438,2]
[353868032,1740102647631,-770.37,0.00014438,2]
[353868033,1740102647641,-500.0,0.00014438,2]
[353868034,1740102647650,-627.86,0.00014438,2]
[353868035,1740102647660,-1278.28,0.00014438,2]
[353868036,1740102647674,-500.0,0.00014438,2]
[353868037,1740102647683,-606.91,0.00014438,2]
[353868038,1740102647693,-644.98,0.00014438,2]
[353868039,1740102647703,-1136.87,0.00014438,2]
[353868040,1740102647713,-738.12,0.00014438,2]
[353868041,1740102647723,-500.0,0.00014438,2]
[353868042,1740102647733,-1525.06,0.00014438,2]
[353868043,1740102647743,-3009.11,0.00014438,2]
[353868044,1740102647753,-500.0,0.00014438,2]
[353868045,1740102647763,-984.37,0.00014438,2]
[353868046,1740102647773,-1851.91,0.00014438,2]
[353868047,1740102647782,-1029.11,0.00014438,2]
[353868048,1740102647792,-1289.91,0.00014438,2]
[353868049,1740102647802,-500.0,0.00014438,2]
[353868050,1740102647813,-649.72,0.00014438,2]
[353868051,1740102647823,-549.03,0.00014438,2]
[353868052,1740102647833,-500.0,0.00014438,2]
[353868053,1740102647842,-1959.61,0.00014438,2]
[353868054,1740102647852,-1056.1,0.00014438,2]
[353868055,1740102647863,-500.0,0.00014438,2]
[353868056,1740102647873,-10010.78,0.00014438,2]
[353868057,1740102647882,-500.0,0.00014438,2]
[353868058,1740102647892,-1378.28,0.00014438,2]
[353868059,1740102647902,-500.0,0.00014438,2]
[353868060,1740102647912,-1480.71,0.00014438,2]
[353868061,1740102647923,-500.0,0.00014438,2]
[353868062,1740102647932,-500.0,0.00014438,2]
[353868063,1740102647943,-1065.74,0.00014438,2]
[353868064,1740102647954,-1000.37,0.00014438,2]
[353868065,1740102647964,-500.0,0.00014438,2]
[353868066,1740102647973,-500.0,0.00014438,2]
[353868067,1740102647983,-3174.19,0.00014438,2]
[353868068,1740102647993,-500.0,0.00014438,2]
[353868069,1740102648002,-1198.02,0.00014438,2]
[353868070,1740102648012,-8694.18,0.00014438,2]
[353868071,1740102648027,-4090.8,0.00014438,2]
[353868072,1740102648037,-682.32,0.00014438,2]
[353868073,1740102648047,-1964.88,0.00014438,2]
[353868074,1740102648057,-625.43,0.00014438,2]
[353868075,1740102648071,-2902.99,0.000145,2]
[353868076,1740102648081,-1251.67094653,0.00014502,2]
[353868077,1740102648091,-500.0,0.0001452,2]
[353868078,1740102648100,-172.37054003,0.0001452,2]
[353868079,1740102648109,-272.59547902,0.0001452,2]
[353868080,1740102648118,-500.0,0.0001452,2]
[353868081,1740102648128,-528.42,0.0001452,2]
[353868082,1740102648138,-500.0,0.0001452,2]
[353868083,1740102648147,-500.0,0.0001452,2]
[353868084,1740102648158,-500.0,0.0001452,2]
[353868085,1740102648167,-593.02,0.0001452,2]
[353868086,1740102648178,-500.0,0.0001452,2]
[353868087,1740102648189,-669.5,0.0001452,2]
[353868088,1740102648198,-500.0,0.0001452,2]
[353868089,1740102648208,-500.0,0.0001452,2]
[353868090,1740102648220,-500.0,0.0001452,2]
[353868091,1740102648230,-579.28,0.0001452,2]
[353868092,1740102648240,-500.0,0.0001452,2]
[353868093,1740102648249,-500.0,0.0001452,2]
[353868094,1740102648261,-500.0,0.0001452,2]
[353868095,1740102648271,-500.0,0.0001452,2]
[353868096,1740102648280,-500.0,0.0001452,2]
[353868097,1740102648290,-500.0,0.0001452,2]
[353868098,1740102648299,-500.0,0.0001452,2]
[353868099,1740102648310,-19027.53,0.0001452,2]
[353868100,1740102648320,-770.37,0.0001452,2]
[353868101,1740102648330,-579.27250631,0.0001452,2]
[353868102,1740102648340,-627.86,0.0001452,2]
[353868103,1740102648350,-1278.28,0.0001452,2]
[353868104,1740102648360,-500.0,0.0001452,2]
[353868105,1740102648370,-606.91,0.0001452,2]
[353868106,1740102648380,-644.98,0.0001452,2]
[353868107,1740102648390,-1136.87,0.0001452,2]
[353868108,1740102648400,-738.12,0.0001452,2]
[353868109,1740102648409,-507.43306106,0.0001452,2]
[353868110,1740102648419,-1525.06,0.0001452,2]
[353868111,1740102648429,-3009.11,0.0001452,2]
[353868112,1740102648439,-605.373375,0.0001452,2]
[353868113,1740102648450,-984.37,0.0001452,2]
[353868114,1740102648461,-1851.91,0.0001452,2]
[353868115,1740102648473,-1029.11,0.0001452,2]
[353868116,1740102648588,-1289.91,0.0001452,2]
[353868117,1740102648599,-500.0,0.0001452,2]
[353868118,1740102648608,-649.72,0.0001452,2]
[353868119,1740102648618,-549.03,0.0001452,2]
[353868120,1740102648629,-500.0,0.0001452,2]
[353868121,1740102648639,-1959.61,0.0001452,2]
[353868122,1740102648649,-1056.1,0.0001452,2]
[353868123,1740102648660,-500.0,0.0001452,2]
[353868124,1740102648670,-10010.78,0.0001452,2]
[353868125,1740102648680,-500.0,0.0001452,2]
[353868126,1740102648691,-1378.28,0.0001452,2]
[353868127,1740102648701,-500.0,0.0001452,2]
[353868128,1740102648711,-1480.71,0.0001452,2]
[353868129,1740102648722,-500.0,0.0001452,2]
[353868130,1740102648732,-500.0,0.0001452,2]
[353868131,1740102648743,-1065.74,0.0001452,2]
[353868132,1740102648753,-1000.37,0.0001452,2]
[353868133,1740102648763,-500.0,0.0001452,2]
[353868134,1740102648773,-500.0,0.0001452,2]
[353868135,1740102648783,-3174.19,0.0001452,2]
[353868136,1740102648793,-500.0,0.0001452,2]
[353868137,1740102648802,-1198.02,0.0001452,2]
[353868138,1740102648811,-8694.18,0.0001452,2]
[353868139,1740102648821,-4090.8,0.0001452,2]
[353868140,1740102648831,-682.32,0.0001452,2]
[353868141,1740102648841,-1964.88,0.0001452,2]
[353868142,1740102648852,-625.43,0.0001452,2]
[353868143,1740102648865,-291.53204559,0.00014531,2]
[353868144,1740102648876,-160.0,0.00014551,4]
[353868145,1740102648886,-151.0,0.000146,2]
[353868146,1740102648898,-500.0,0.00014602,2]
[353868147,1740102648911,-528.42,0.00014602,2]
[353868148,1740102648923,-500.0,0.00014602,2]
[353868149,1740102648935,-500.0,0.00014602,2]
[353868150,1740102648952,-500.0,0.00014602,2]
[353868151,1740102648963,-593.02,0.00014602,2]
[353868152,1740102648975,-500.0,0.00014602,2]
[353868153,1740102648986,-669.5,0.00014602,2]
[353868154,1740102648997,-500.0,0.00014602,2]
[353868155,1740102649008,-500.0,0.00014602,2]
[353868156,1740102649019,-500.0,0.00014602,2]
[353868157,1740102649030,-579.28,0.00014602,2]
[353868158,1740102649040,-500.0,0.00014602,2]
[353868159,1740102649050,-500.0,0.00014602,2]
[353868160,1740102649061,-500.0,0.00014602,2]
[353868161,1740102649078,-500.0,0.00014602,2]
[353868162,1740102649095,-212.93320502,0.00014602,2]
[353868163,1740102649106,-500.0,0.00014602,2]
[353868164,1740102649117,-500.0,0.00014602,2]
[353868165,1740102649129,-19027.53,0.00014602,2]
[353868166,1740102649140,-770.37,0.00014602,2]
[353868167,1740102649150,-627.86,0.00014602,2]
[353868168,1740102649165,-1278.28,0.00014602,2]
[353868169,1740102649175,-500.0,0.00014602,2]
[353868170,1740102649186,-606.91,0.00014602,2]
[353868171,1740102649196,-644.98,0.00014602,2]
[353868172,1740102649206,-1136.87,0.00014602,2]
[353868173,1740102649215,-738.12,0.00014602,2]
[353868174,1740102649225,-1525.06,0.00014602,2]
[353868175,1740102649235,-3009.11,0.00014602,2]
[353868176,1740102649245,-984.37,0.00014602,2]
[353868177,1740102649254,-1851.91,0.00014602,2]
[353868178,1740102649264,-1029.11,0.00014602,2]
[353868179,1740102649274,-1289.91,0.00014602,2]
[353868180,1740102649285,-465.68918106,0.00014602,2]
[353868181,1740102649295,-649.72,0.00014602,2]
[353868182,1740102649304,-549.03,0.00014602,2]
[353868183,1740102649314,-500.0,0.00014602,2]
[353868184,1740102649325,-1959.61,0.00014602,2]
[353868185,1740102649335,-1056.1,0.00014602,2]
[353868186,1740102649346,-500.0,0.00014602,2]
[353868187,1740102649357,-10010.78,0.00014602,2]
[353868188,1740102649367,-500.0,0.00014602,2]
[353868189,1740102649377,-1378.28,0.00014602,2]
[353868190,1740102649387,-500.0,0.00014602,2]
[353868191,1740102649397,-1480.71,0.00014602,2]
[353868192,1740102649409,-500.0,0.00014602,2]
[353868193,1740102649419,-500.0,0.00014602,2]
[353868194,1740102649428,-1065.74,0.00014602,2]
[353868195,1740102649438,-1000.37,0.00014602,2]
[353868196,1740102649448,-500.0,0.00014602,2]
[353868197,1740102649458,-500.0,0.00014602,2]
[353868198,1740102649472,-3174.19,0.00014602,2]
[353868199,1740102649482,-358.85536298,0.00014602,2]
[353868200,1740102649491,-1198.02,0.00014602,2]
[353868201,1740102649501,-8694.18,0.00014602,2]
[353868202,1740102649512,-4090.8,0.00014602,2]
[353868203,1740102649521,-682.32,0.00014602,2]
[353868204,1740102649531,-1964.88,0.00014602,2]
[353868205,1740102649541,-625.43,0.00014602,2]
[353868206,1740102649552,-606.11449744,0.0001465,2]
[353868207,1740102649562,-168.55495805,0.00014658,2]
[353868208,1740102649572,-168.26106217,0.00014658,2]
[353868209,1740102649582,-500.0,0.00014684,2]
[353868210,1740102649593,-528.42,0.00014684,2]
[353868211,1740102649603,-500.0,0.00014684,2]
[353868212,1740102649613,-500.0,0.00014684,2]
[353868213,1740102649623,-585.7547945,0.00014684,2]
[353868214,1740102649634,-593.02,0.00014684,2]
[353868215,1740102649644,-500.0,0.00014684,2]
[353868216,1740102649654,-669.5,0.00014684,2]
[353868217,1740102649664,-500.0,0.00014684,2]
[353868218,1740102649673,-500.0,0.00014684,2]
[353868219,1740102649683,-500.0,0.00014684,2]
[353868220,1740102649693,-579.28,0.00014684,2]
[353868221,1740102649703,-500.0,0.00014684,2]
[353868222,1740102649713,-500.0,0.00014684,2]
[353868223,1740102649724,-500.0,0.00014684,2]
[353868224,1740102649734,-239.91485915,0.00014684,2]
[353868225,1740102649745,-594.1415852,0.00014684,2]
[353868226,1740102649755,-500.0,0.00014684,2]
[353868227,1740102649764,-19027.53,0.00014684,2]
[353868228,1740102649774,-770.37,0.00014684,2]
[353868229,1740102649783,-627.86,0.00014684,2]
[353868230,1740102649794,-1278.28,0.00014684,2]
[353868231,1740102649803,-500.0,0.00014684,2]
[353868232,1740102649813,-606.91,0.00014684,2]
[353868233,1740102649823,-644.98,0.00014684,2]
[353868234,1740102649833,-1136.87,0.00014684,2]
[353868235,1740102649843,-738.12,0.00014684,2]
[353868236,1740102649853,-1525.06,0.00014684,2]
[353868237,1740102649863,-3009.11,0.00014684,2]
[353868238,1740102649873,-984.37,0.00014684,2]
[353868239,1740102649883,-1851.91,0.00014684,2]
[353868240,1740102649893,-1029.11,0.00014684,2]
[353868241,1740102649903,-1289.91,0.00014684,2]
[353868242,1740102649913,-649.72,0.00014684,2]
[353868243,1740102649923,-549.03,0.00014684,2]
[353868244,1740102649934,-500.0,0.00014684,2]
[353868245,1740102649944,-1959.61,0.00014684,2]
[353868246,1740102649954,-1056.1,0.00014684,2]
[353868247,1740102649964,-216.44540046,0.00014684,2]
[353868248,1740102649974,-10010.78,0.00014684,2]
[353868249,1740102649984,-500.0,0.00014684,2]
[353868250,1740102649993,-1378.28,0.00014684,2]
[353868251,1740102650003,-500.0,0.00014684,2]
[353868252,1740102650013,-1480.71,0.00014684,2]
[353868253,1740102650022,-500.0,0.00014684,2]
[353868254,1740102650032,-500.0,0.00014684,2]
[353868255,1740102650042,-1065.74,0.00014684,2]
[353868256,1740102650051,-1000.37,0.00014684,2]
[353868257,1740102650061,-500.0,0.00014684,2]
[353868258,1740102650071,-500.0,0.00014684,2]
[353868259,1740102650081,-3174.19,0.00014684,2]
[353868260,1740102650090,-1198.02,0.00014684,2]
[353868261,1740102650100,-8694.18,0.00014684,2]
[353868262,1740102650110,-4090.8,0.00014684,2]
[353868263,1740102650120,-682.32,0.00014684,2]
[353868264,1740102650129,-1964.88,0.00014684,2]
[353868265,1740102650139,-625.43,0.00014684,2]
[353868266,1740102650149,-151.0,0.000147,2]
[353868267,1740102650159,-501.60802219,0.00014721,2]
[353868268,1740102650169,-279.99377584,0.00014721,2]
[353868269,1740102650179,-1000.0,0.00014721,2]
[353868270,1740102650189,-1003.85790626,0.00014721,2]
[353868271,1740102650198,-500.0,0.00014767,2]
[353868272,1740102650208,-528.42,0.00014767,2]
[353868273,1740102650217,-500.0,0.00014767,2]
[353868274,1740102650227,-500.0,0.00014767,2]
[353868275,1740102650236,-593.02,0.00014767,2]
[353868276,1740102650246,-317.65224408,0.00014767,2]
[353868277,1740102650255,-669.5,0.00014767,2]
[353868278,1740102650264,-531.88953576,0.00014767,2]
[353868279,1740102650274,-500.0,0.00014767,2]
[353868280,1740102650283,-500.0,0.00014767,2]
[353868281,1740102650293,-579.28,0.00014767,2]
[353868282,1740102650302,-383.26931176,0.00014767,2]
[353868283,1740102650313,-500.0,0.00014767,2]
[353868284,1740102650322,-500.0,0.00014767,2]
[353868285,1740102650331,-500.0,0.00014767,2]
[353868286,1740102650340,-19027.53,0.00014767,2]
[353868287,1740102650350,-770.37,0.00014767,2]
[353868288,1740102650359,-627.86,0.00014767,2]
[353868289,1740102650369,-1278.28,0.00014767,2]
[353868290,1740102650379,-500.0,0.00014767,2]
[353868291,1740102650388,-606.91,0.00014767,2]
[353868292,1740102650397,-644.98,0.00014767,2]
[353868293,1740102650408,-1136.87,0.00014767,2]
[353868294,1740102650417,-738.12,0.00014767,2]
[353868295,1740102650427,-1525.06,0.00014767,2]
[353868296,1740102650438,-3009.11,0.00014767,2]
[353868297,1740102650448,-984.37,0.00014767,2]
[353868298,1740102650459,-1851.91,0.00014767,2]
[353868299,1740102650472,-1029.11,0.00014767,2]
[353868300,1740102650481,-1289.91,0.00014767,2]
[353868301,1740102650490,-649.72,0.00014767,2]
[353868302,1740102650500,-395.34825209,0.00014767,2]
[353868303,1740102650690,-1703.3,0.00014273,2]
[353868304,1740102650700,-1703.3,0.00014356,2]
[353868305,1740102650710,-1703.3,0.00014438,2]
[353868306,1740102650719,-1703.3,0.0001452,2]
[353868307,1740102650730,-1703.3,0.00014602,2]
[353868308,1740102650739,-1703.3,0.00014684,2]
[353868309,1740102650749,-153.68174791,0.00014767,2]
[353868310,1740102650759,-500.0,0.00014767,2]
[353868311,1740102650768,-1959.61,0.00014767,2]
[353868312,1740102650778,-1056.1,0.00014767,2]
[353868313,1740102650788,-10010.78,0.00014767,2]
[353868314,1740102650797,-500.0,0.00014767,2]
[353868315,1740102650807,-1378.28,0.00014767,2]
[353868316,1740102650817,-500.0,0.00014767,2]
[353868317,1740102650827,-1480.71,0.00014767,2]
[353868318,1740102650836,-500.0,0.00014767,2]
[353868319,1740102650943,-500.0,0.00014767,2]
[353868320,1740102650953,-1065.74,0.00014767,2]
[353868321,1740102650963,-1000.37,0.00014767,2]
[353868322,1740102650972,-558.17063581,0.00014767,2]
[353868323,1740102650983,-500.0,0.00014767,2]
[353868324,1740102650992,-3174.19,0.00014767,2]
[353868325,1740102651002,-1198.02,0.00014767,2]
[353868326,1740102651011,-8694.18,0.00014767,2]
[353868327,1740102651021,-4090.8,0.00014767,2]
[353868328,1740102651031,-682.32,0.00014767,2]
[353868329,1740102651040,-1964.88,0.00014767,2]
[353868330,1740102651049,-625.43,0.00014767,2]
[353868331,1740102651059,-1703.3,0.00014767,2]
[353868332,1740102651068,-500.0,0.00014794,2]
[353868333,1740102651078,-1000.0,0.000148,4]
[353868334,1740102651087,-1000.0,0.000148,5]
[353868335,1740102651097,-1000.0,0.000148,6]
[353868336,1740102651107,-1000.0,0.000148,7]
[353868337,1740102651116,-1000.0,0.000148,8]
[353868338,1740102651125,-217.80964528,0.00014821,2]
[353868339,1740102651135,-2248.2724494,0.00014831,2]
[353868340,1740102651144,-160.0,0.00014841,5]
[353868341,1740102651155,-500.0,0.00014849,2]
[353868342,1740102651165,-528.42,0.00014849,2]
[353868343,1740102651174,-500.0,0.00014849,2]
[353868344,1740102651184,-559.73733376,0.00014849,2]
[353868345,1740102651194,-593.02,0.00014849,2]
[353868346,1740102651203,-669.5,0.00014849,2]
[353868347,1740102651214,-500.0,0.00014849,2]
[353868348,1740102651225,-162.31857932,0.00014849,2]
[353868349,1740102651235,-579.28,0.00014849,2]
[353868350,1740102651247,-500.0,0.00014849,2]
[353868351,1740102651257,-500.0,0.00014849,2]
[353868352,1740102651267,-500.0,0.00014849,2]
[353868353,1740102651276,-770.37,0.00014849,2]
[353868354,1740102651285,-19027.53,0.00014849,2]
[353868355,1740102651294,-627.86,0.00014849,2]
[353868356,1740102651304,-1278.28,0.00014849,2]
[353868357,1740102651315,-500.0,0.00014849,2]
[353868358,1740102651324,-606.91,0.00014849,2]
[353868359,1740102651335,-644.98,0.00014849,2]
[353868360,1740102651346,-1136.87,0.00014849,2]
[353868361,1740102651356,-738.12,0.00014849,2]
[353868362,1740102651366,-1525.06,0.00014849,2]
[353868363,1740102651375,-3009.11,0.00014849,2]
[353868364,1740102651385,-984.37,0.00014849,2]
[353868365,1740102651395,-1851.91,0.00014849,2]
[353868366,1740102651405,-1029.11,0.00014849,2]
[353868367,1740102651415,-1289.91,0.00014849,2]
[353868368,1740102651425,-649.72,0.00014849,2]
[353868369,1740102651434,-549.03,0.00014849,2]
[353868370,1740102651444,-500.0,0.00014849,2]
[353868371,1740102651453,-1959.61,0.00014849,2]
[353868372,1740102651466,-1056.1,0.00014849,2]
[353868373,1740102651476,-10010.78,0.00014849,2]
[353868374,1740102651485,-500.0,0.00014849,2]
[353868375,1740102651495,-1378.28,0.00014849,2]
[353868376,1740102651505,-500.0,0.00014849,2]
[353868377,1740102651514,-1480.71,0.00014849,2]
[353868378,1740102651524,-635.54967895,0.00014849,2]
[353868379,1740102651534,-500.0,0.00014849,2]
[353868380,1740102651544,-1065.74,0.00014849,2]
[353868381,1740102651554,-1000.37,0.00014849,2]
[353868382,1740102651563,-500.0,0.00014849,2]
[353868383,1740102651574,-3174.19,0.00014849,2]
[353868384,1740102651583,-1198.02,0.00014849,2]
[353868385,1740102651593,-8694.18,0.00014849,2]
[353868386,1740102651602,-4090.8,0.00014849,2]
[353868387,1740102651612,-682.32,0.00014849,2]
[353868388,1740102651621,-1964.88,0.00014849,2]
[353868389,1740102651631,-625.43,0.00014849,2]
[353868390,1740102651640,-1703.3,0.00014849,2]
[353868391,1740102651649,-306.0,0.0001485,2]
[353868392,1740102651660,-150.305,0.00014853,2]
[353868393,1740102651670,-538.0,0.00014853,2]
[353868394,1740102651680,-1969.0,0.00014853,2]
[353868395,1740102651690,-2288.0,0.00014853,2]
[353868396,1740102651699,-150.0,0.00014853,2]
[353868397,1740102651708,-396.0,0.00014853,2]
[353868398,1740102651718,-11886.80580218,0.00014855,2]
[353868399,1740102651728,-500.53230309,0.00014873,2]
[353868400,1740102651737,-500.0,0.00014873,2]
[353868401,1740102651747,-500.0,0.00014873,2]
[353868402,1740102651756,-500.0,0.00014873,2]
[353868403,1740102651765,-500.0,0.00014873,2]
[353868404,1740102651775,-578615.893917,0.000149,2]
[353868405,1740102651785,-500.0,0.00014931,2]
[353868406,1740102651795,-528.42,0.00014931,2]
[353868407,1740102651804,-500.53690333,0.00014931,2]
[353868408,1740102651813,-593.02,0.00014931,2]
[353868409,1740102651823,-669.5,0.00014931,2]
[353868410,1740102651831,-500.0,0.00014931,2]
[353868411,1740102651841,-579.28,0.00014931,2]
[353868412,1740102651850,-500.0,0.00014931,2]
[353868413,1740102651860,-500.0,0.00014931,2]
[353868414,1740102651869,-500.0,0.00014931,2]
[353868415,1740102651879,-770.37,0.00014931,2]
[353868416,1740102651888,-19027.53,0.00014931,2]
[353868417,1740102651904,-627.86,0.00014931,2]
[353868418,1740102651914,-1278.28,0.00014931,2]
[353868419,1740102651924,-500.0,0.00014931,2]
[353868420,1740102651933,-606.91,0.00014931,2]
[353868421,1740102651944,-644.98,0.00014931,2]
[353868422,1740102651955,-1136.87,0.00014931,2]
[353868423,1740102651964,-738.12,0.00014931,2]
[353868424,1740102651973,-1525.06,0.00014931,2]
[353868425,1740102651982,-3009.11,0.00014931,2]
[353868426,1740102651992,-984.37,0.00014931,2]
[353868427,1740102652002,-1851.91,0.00014931,2]
[353868428,1740102652011,-1029.11,0.00014931,2]
[353868429,1740102652020,-1289.91,0.00014931,2]
[353868430,1740102652030,-649.72,0.00014931,2]
[353868431,1740102652039,-549.03,0.00014931,2]
[353868432,1740102652049,-500.0,0.00014931,2]